fUST/lending_fUST_20250911
["ID","MTS","AMOUNT","RATE_DAILY","PERIOD"]
[384836098,1757582388871,500.0,0.00013589,2]
[384836099,1757582388913,190.009,0.00013589,2]
[384836100,1757582389067,500.0,0.00013589,2]
[384836101,1757582389104,500.0,0.00013589,2]
[384836102,1757582389138,500.0,0.00013589,2]
[384836103,1757582389176,500.0,0.00013589,2]
[384836105,1757582400879,500.0,0.00013589,2]
[384836106,1757582400946,322.22502138,0.00013589,2]
[384836107,1757582401173,137.08156357,0.00013589,2]
[384836108,1757582401196,362.91843643,0.00013589,2]
[384836109,1757582402718,300.0,0.00013589,2]
[384836110,1757582402762,300.0,0.00013589,2]
[384836111,1757582403093,300.0,0.00013589,2]
[384836112,1757582403484,1200.0,0.00013589,2]
[384836113,1757582403917,300.0,0.00013589,2]
[384836114,1757582407479,1000.0,0.0001359,2]
[384836115,1757582407811,151.22255308,0.0001359,2]
[384836116,1757582408782,1000.0,0.0001359,2]
[384836117,1757582409481,1000.0,0.0001359,2]
[384836118,1757582409556,162.380719,0.0001359,2]
[384836119,1757582409732,151.0,0.0001359,2]
[384836120,1757582409875,151.0,0.0001359,2]
[384836121,1757582410065,3621.48829149,0.0001359,2]
[384836122,1757582410088,10000.01,0.0001359,2]
[384836123,1757582410109,4982.38540851,0.0001359,2]
[384836124,1757582410170,1000.0,0.0001359,2]
[384836125,1757582410446,151.0,0.0001359,2]
[384836126,1757582410590,151.0,0.0001359,2]
[384836127,1757582411161,151.0,0.0001359,2]
[384836128,1757582411239,151.0,0.0001359,2]
[384836129,1757582411341,753.89064566,0.0001359,2]
[384836130,1757582411891,151.0,0.0001359,2]
[384836131,1757582411922,151.0,0.0001359,2]
[384836132,1757582412164,248.64,0.00012329,2]
[384836133,1757582413019,151.0,0.0001359,2]
[384836134,1757582413105,151.0,0.0001359,2]
[384836135,1757582413234,151.0,0.0001359,2]
[384836136,1757582413549,294.40859291,0.0001359,2]
[384836137,1757582413682,151.0,0.0001359,2]
[384836138,1757582414296,1210.68535292,0.0001359,2]
[384836139,1757582414319,819.61131908,0.0001359,2]
[384836140,1757582414384,151.0,0.0001359,2]
[384836141,1757582414480,151.0,0.0001359,2]
[384836142,1757582414551,151.0,0.0001359,2]
[384836143,1757582414921,151.0,0.0001359,2]
[384836144,1757582415159,151.0,0.0001359,2]
[384836145,1757582415190,500.0,0.0001359,2]
[384836146,1757582415478,151.0,0.0001359,2]
[384836147,1757582415843,500.0,0.00013589,2]
[384836148,1757582415877,151.0,0.0001359,2]
[384836149,1757582415909,500.0,0.00013589,2]
[384836150,1757582415949,500.0,0.00013589,2]
[384836151,1757582415980,500.0,0.00013589,2]
[384836152,1757582416012,250.0,0.00013589,2]
[384836153,1757582416060,151.0,0.0001359,2]
[384836154,1757582416090,151.0,0.0001359,2]
[384836155,1757582416333,500.0,0.0001359,2]
[384836156,1757582416365,151.0,0.0001359,2]
[384836157,1757582416501,151.0,0.0001359,2]
[384836158,1757582416677,151.0,0.0001359,2]
[384836159,1757582416763,151.0,0.0001359,2]
[384836160,1757582417410,151.0,0.0001359,2]
[384836161,1757582417440,151.0,0.0001359,2]
[384836162,1757582417550,151.0,0.0001359,2]
[384836163,1757582417581,500.0,0.0001359,2]
[384836164,1757582417954,151.0,0.0001359,2]
[384836165,1757582418045,151.0,0.0001359,2]
[384836166,1757582418083,151.0,0.0001359,2]
[384836167,1757582418168,250.0,0.0001359,2]
[384836168,1757582418230,151.0,0.0001359,2]
[384836169,1757582418796,151.0,0.0001359,2]
[384836170,1757582418831,500.0,0.0001359,2]
[384836171,1757582418897,250.0,0.0001359,2]
[384836172,1757582418942,151.0,0.0001359,2]
[384836173,1757582419287,151.0,0.0001359,2]
[384836174,1757582419320,151.0,0.0001359,2]
[384836175,1757582419559,500.0,0.0001359,2]
[384836176,1757582419826,151.0,0.00013454,2]
[384836177,1757582419918,155.39868092,0.0001359,2]
[384836178,1757582419941,22.45513136,0.0001359,2]
[384836179,1757582419975,151.0,0.0001359,2]
[384836180,1757582420005,151.0,0.0001359,2]
[384836181,1757582420129,250.0,0.0001359,2]
[384836182,1757582420204,151.0,0.0001359,2]
[384836183,1757582420236,500.0,0.0001359,2]
[384836184,1757582420769,151.0,0.0001359,2]
[384836185,1757582421183,151.0,0.0001359,2]
[384836186,1757582421305,250.0,0.0001359,2]
[384836187,1757582421457,500.0,0.0001359,2]
[384836188,1757582421523,151.0,0.0001359,2]
[384836189,1757582421554,151.0,0.0001359,2]
[384836190,1757582421926,151.0,0.0001359,2]
[384836191,1757582422000,250.0,0.0001359,2]
[384836192,1757582422228,151.0,0.0001359,2]
[384836193,1757582422299,151.0,0.0001359,2]
[384836194,1757582422586,248.64,0.00012329,2]
[384836195,1757582422674,151.0,0.0001359,2]
[384836196,1757582422720,500.0,0.0001359,2]
[384836197,1757582422753,250.0,0.0001359,2]
[384836198,1757582422965,151.0,0.0001359,2]
[384836199,1757582423054,151.0,0.0001359,2]
[384836200,1757582423355,151.0,0.0001359,2]
[384836201,1757582423442,250.0,0.0001359,2]
[384836202,1757582423622,500.0,0.0001359,2]
[384836203,1757582423652,151.0,0.0001359,2]
[384836204,1757582423884,151.0,0.0001359,2]
[384836205,1757582424075,250.0,0.0001359,2]
[384836206,1757582424108,151.0,0.0001359,2]
[384836207,1757582424253,500.0,0.0001359,2]
[384836208,1757582424362,151.0,0.0001359,2]
[384836209,1757582424432,151.0,0.0001359,2]
[384836210,1757582424766,250.0,0.0001359,2]
[384836211,1757582424800,151.0,0.0001359,2]
[384836212,1757582425009,500.0,0.0001359,2]
[384836213,1757582425043,151.0,0.0001359,2]
[384836214,1757582425489,250.0,0.0001359,2]
[384836215,1757582425525,151.0,0.0001359,2]
[384836216,1757582425627,187.99097013,0.0001359,2]
[384836217,1757582425714,500.0,0.0001359,2]
[384836218,1757582426192,151.0,0.0001359,2]
[384836219,1757582426267,250.0,0.0001359,2]
[384836220,1757582426406,317.92389851,0.0001359,2]
[384836221,1757582426429,182.07610149,0.0001359,2]
[384836222,1757582426915,235.0241308,0.0001359,2]
[384836223,1757582426945,250.0,0.0001359,2]
[384836224,1757582427078,500.0,0.0001359,2]
[384836225,1757582427659,250.0,0.0001359,2]
[384836226,1757582427752,500.0,0.0001359,2]
[384836227,1757582428392,500.0,0.0001359,2]
[384836228,1757582428448,250.0,0.0001359,2]
[384836229,1757582429027,500.0,0.0001359,2]
[384836230,1757582429111,6302.62050041,0.00013454,2]
[384836231,1757582429685,500.0,0.0001359,2]
[384836232,1757582429726,30.2892673,0.0001359,2]
[384836233,1757582429748,299.05014062,0.0001359,2]
[384836234,1757582432975,561.58,0.00012329,2]
[384836235,1757582436421,153.51,0.00028712,60]
[384836236,1757582446920,6809.58231735,0.00013454,2]
[384836237,1757582453621,221.33,0.00012329,2]
[384836238,1757582455132,2969.09768265,0.00013454,2]
[384836239,1757582455156,775.99496561,0.00013454,2]
[384836240,1757582464298,184.45,0.00012329,2]
[384836241,1757582465164,184.45,0.00012205,2]
[384836242,1757582473330,300.0,0.00013452,2]
[384836243,1757582475276,-300.0,0.00013588,2]
[384836244,1757582475309,-500.0,0.00013589,2]
[384836245,1757582475340,-500.0,0.00013589,2]
[384836246,1757582475369,-500.0,0.00013589,2]
[384836247,1757582475402,-500.0,0.00013589,2]
[384836248,1757582475432,-500.0,0.00013589,2]
[384836249,1757582475462,-500.0,0.00013589,2]
[384836250,1757582475492,-249.991,0.00013589,2]
[384836251,1757582475521,-500.0,0.00013589,2]
[384836252,1757582475549,-500.0,0.00013589,2]
[384836253,1757582475578,-302.23987247,0.00013589,2]
[384836254,1757582475805,-500.0,0.00013589,2]
[384836255,1757582475834,-500.0,0.00013589,2]
[384836256,1757582475863,-500.0,0.00013589,2]
[384836257,1757582475893,-500.0,0.00013589,2]
[384836258,1757582475922,-500.0,0.00013589,2]
[384836259,1757582475951,-500.0,0.00013589,2]
[384836260,1757582475981,-500.0,0.00013589,2]
[384836261,1757582476014,-462.70370037,0.00013589,2]
[384836262,1757582476046,-307.43453656,0.00013589,2]
[384836263,1757582476077,-500.0,0.00013589,2]
[384836264,1757582476465,-500.0,0.00013589,2]
[384836265,1757582476495,-500.0,0.00013589,2]
[384836266,1757582476524,-500.0,0.00013589,2]
[384836267,1757582476553,-500.0,0.00013589,2]
[384836268,1757582476581,-500.0,0.00013589,2]
[384836269,1757582476611,-500.0,0.00013589,2]
[384836270,1757582476641,-621.96137754,0.00013589,2]
[384836271,1757582476878,-500.0,0.00013589,2]
[384836272,1757582476908,-500.0,0.00013589,2]
[384836273,1757582476938,-256.08724492,0.00013589,2]
[384836274,1757582477062,-243.91275508,0.00013589,2]
[384836275,1757582482174,1687.25257849,0.00013454,2]
[384836276,1757582482332,2414.6705963,0.0002739,120]
[384836277,1757582485382,153.7,0.00012329,2]
[384836278,1757582486331,500.0,0.00013589,2]
[384836279,1757582486366,500.0,0.00013589,2]
[384836280,1757582486396,500.0,0.00013589,2]
[384836281,1757582486428,500.0,0.00013589,2]
[384836282,1757582486458,500.0,0.00013589,2]
[384836283,1757582486599,542.56546344,0.00013589,2]
[384836284,1757582490859,430.9022717,0.00013454,2]
[384836285,1757582495467,159.230121,0.00024,30]
[384836286,1757582495843,768.55,0.00012329,2]
[384836287,1757582499526,3429.21417621,0.00013454,2]
[384836288,1757582499552,2382.49186912,0.00013454,2]
[384836289,1757582501663,155.502213,0.00024,30]
[384836290,1757582502132,155.502213,0.00024,30]
[384836291,1757582516470,201.45,0.00012329,2]
[384836292,1757582526896,167.88,0.00012329,2]
[384836293,1757582532738,1200.0,0.00013589,2]
[384836294,1757582537309,839.41,0.00012329,2]
[384836295,1757582547705,839.41,0.00012329,2]
[384836296,1757582555235,563.09363378,0.00013454,2]
[384836297,1757582559634,182.8,0.00012329,2]
[384836298,1757582570061,1159.43,0.00012329,2]
[384836299,1757582580462,1095.89,0.00012329,2]
[384836300,1757582582515,300.0,0.00013589,2]
[384836301,1757582586595,473.37520339,0.00013498,2]
[384836302,1757582586642,594.77929371,0.00013575,2]
[384836303,1757582586664,10000.01,0.00013575,2]
[384836304,1757582586686,10000.01,0.00013575,2]
[384836305,1757582586821,10000.01,0.00013575,2]
[384836306,1757582586843,10000.01,0.00013575,2]
[384836307,1757582586865,6783.41777019,0.00013575,2]
[384836308,1757582591108,913.24,0.00012329,2]
[384836309,1757582601453,761.03,0.00012329,2]
[384836310,1757582605638,375.39678123,0.0001349,2]
[384836311,1757582611880,928.95,0.00012329,2]
[384836312,1757582619906,237.97544858,0.00013454,2]
[384836313,1757582619929,662.02455142,0.00013454,2]
[384836314,1757582622261,774.12,0.00012329,2]
[384836315,1757582632680,645.1,0.00012329,2]
[384836316,1757582643136,537.59,0.00012329,2]
[384836317,1757582643435,300.0,0.00013589,2]
[384836318,1757582653241,500.0,0.00013589,2]
[384836319,1757582653293,162.52263337,0.00013589,2]
[384836320,1757582653527,447.99,0.00012329,2]
[384836321,1757582663931,373.32,0.00012329,2]
[384836322,1757582674334,311.1,0.00012329,2]
[384836323,1757582681505,500.0,0.00013589,2]
[384836324,1757582681537,500.0,0.00013589,2]
[384836325,1757582681575,500.0,0.00013589,2]
[384836326,1757582681608,500.0,0.00013589,2]
[384836327,1757582681641,500.0,0.00013589,2]
[384836328,1757582681672,500.0,0.00013589,2]
[384836329,1757582681706,543.52306617,0.00013589,2]
[384836330,1757582681737,500.0,0.00013589,2]
[384836331,1757582684943,259.25,0.00012329,2]
[384836332,1757582687270,983.46974904,0.00012791,2]
[384836333,1757582687291,290.67377016,0.00012791,2]
[384836334,1757582693439,202.53078048,0.00013589,2]
[384836335,1757582693955,500.0,0.00013589,2]
[384836336,1757582694011,500.0,0.00013589,2]
[384836337,1757582694054,600.58719069,0.00013589,2]
[384836338,1757582694086,500.0,0.00013589,2]
[384836339,1757582694149,500.0,0.00013589,2]
[384836340,1757582694221,265.43887354,0.00013589,2]
[384836341,1757582695368,216.04,0.00012329,2]
[384836342,1757582702400,300.0,0.00013589,2]
[384836343,1757582702873,300.0,0.00013589,2]
[384836344,1757582703484,300.0,0.00013589,2]
[384836345,1757582703654,1200.0,0.00013589,2]
[384836346,1757582705950,180.04,0.00012329,2]
[384836348,1757582708872,500.0,0.00013589,2]
[384836349,1757582708928,500.0,0.00013589,2]
[384836350,1757582708982,500.0,0.00013589,2]
[384836351,1757582709041,262.08112031,0.00013589,2]
[384836352,1757582710171,500.0,0.00024,30]
[384836353,1757582713539,500.0,0.00013589,2]
[384836354,1757582723767,355.89740594,0.00013589,2]
[384836355,1757582723803,500.0,0.00013589,2]
[384836356,1757582730108,1026.72085888,0.000135,2]
[384836357,1757582730141,7612.27914112,0.000135,2]
[384836358,1757582733498,500.0,0.00013589,2]
[384836359,1757582733543,158.0,0.00026947,120]
[384836360,1757582741438,624.10259406,0.00013589,2]
[384836362,1757582745424,1263.62826482,0.0001269,2]
[384836363,1757582745447,736.37173518,0.0001269,2]
[384836364,1757582758098,4568.99558774,0.00013573,2]
[384836365,1757582759139,2000.0,0.00013589,2]
[384836366,1757582759299,2000.0,0.00013589,2]
[384836367,1757582759598,694.64267708,0.00013589,2]
[384836368,1757582759620,1305.35732292,0.00013589,2]
[384836369,1757582759936,2000.0,0.00013589,2]
[384836370,1757582760219,2000.0,0.00013589,2]
[384836371,1757582760551,2000.0,0.00013589,2]
[384836372,1757582760791,2000.0,0.00013589,2]
[384836373,1757582761082,694.65267708,0.00013589,2]
[384836374,1757582761106,1305.34732292,0.00013589,2]
[384836375,1757582761371,1168.334,0.00013589,2]
[384836376,1757582761940,1000.0,0.00013589,2]
[384836377,1757582762234,1000.0,0.00013589,2]
[384836378,1757582762518,1000.0,0.00013589,2]
[384836379,1757582762706,300.0,0.00013589,2]
[384836380,1757582762826,1000.0,0.00013589,2]
[384836381,1757582763495,1000.0,0.00013589,2]
[384836382,1757582763786,1000.0,0.00013589,2]
[384836383,1757582764069,1000.0,0.00013589,2]
[384836384,1757582764689,226.32867708,0.00013589,2]
[384836385,1757582764711,773.67132292,0.00013589,2]
[384836386,1757582764977,1000.0,0.00013589,2]
[384836387,1757582765268,1000.0,0.00013589,2]
[384836391,1757582786767,172.35843111,0.0001349,2]
[384836392,1757582805237,664.79642,0.00013182,2]
[384836393,1757582805606,577.42682405,0.00013234,2]
[384836394,1757582805898,288.71341202,0.00013262,2]
[384836398,1757582833072,1200.0,0.00013589,2]
[384836399,1757582852978,5334.25979192,0.00028715,120]
[384836400,1757582865011,1407.32749021,0.00028715,120]
[384836401,1757582866328,322.43790688,0.00028715,60]
[384836402,1757582866603,280.36949614,0.00028715,120]
[384836403,1757582868826,850.53384341,0.0001349,2]
[384836404,1757582871209,2142.25414806,0.000259,120]
[384836408,1757582882991,300.0,0.00013589,2]
[384836409,1757582884618,10558.16096196,0.00028715,60]
[384836410,1757582888854,863.44142298,0.00028715,120]
[384836411,1757582889212,3172.50974649,0.0001269,2]
[384836412,1757582889236,10000.01,0.0001269,2]
[384836413,1757582889263,1500.86561321,0.0001269,2]
[384836414,1757582893696,2534.50531396,0.00028715,120]
[384836415,1757582894984,1058.88183618,0.00028715,120]
[384836416,1757582895531,982.11309735,0.00028715,120]
[384836417,1757582897786,1057.05809476,0.00028715,120]
[384836418,1757582900012,361.46,0.00012329,2]
[384836419,1757582903503,1448.60099467,0.00028715,120]
[384836420,1757582903829,932.60001095,0.00028715,120]
[384836421,1757582904603,300.0,0.000145,9]
[384836422,1757582907383,999.999997,0.00028715,120]
[384836423,1757582909782,906.22615534,0.00028715,60]
[384836424,1757582910806,301.22,0.00012329,2]
[384836425,1757582911535,3007.53226116,0.00028715,120]
[384836426,1757582911868,860.18936452,0.00028715,120]
[384836427,1757582912868,829.12858142,0.00028715,120]
[384836428,1757582912904,703.30452825,0.00028715,120]
[384836429,1757582913759,1253.50010625,0.00028715,120]
[384836430,1757582914191,6049.32807643,0.00028715,60]
[384836431,1757582914222,23541.27641372,0.00028715,120]
[384836432,1757582914256,240.82074905,0.00028715,120]
[384836433,1757582914709,252.34709947,0.00028715,90]
[384836434,1757582915296,393.34850161,0.00025,120]
[384836435,1757582915621,246.55871198,0.00028715,120]
[384836436,1757582915944,349.88502844,0.0002,120]
[384836437,1757582916546,352.31218438,0.00028715,120]
[384836438,1757582916583,1255.5036721,0.00028715,90]
[384836439,1757582916818,2000.0,0.00028715,120]
[384836440,1757582917345,344.65765466,0.00028715,120]
[384836441,1757582917511,1120.69421259,0.00028715,120]
[384836442,1757582917821,696.26239635,0.00028715,60]
[384836443,1757582917911,568.37096579,0.00024108,120]
[384836444,1757582917995,2719.83311673,0.00025,120]
[384836445,1757582918134,178.07937604,0.00027397,120]
[384836446,1757582918215,289.75678832,0.00025,120]
[384836447,1757582919118,564.48582119,0.00028715,120]
[384836448,1757582919511,3263.30001558,0.00028715,60]
[384836449,1757582919949,449.38782479,0.00028715,120]
[384836450,1757582919978,244.47236964,0.00028715,120]
[384836451,1757582920299,1025.88964148,0.00028715,120]
[384836452,1757582920797,1459.29009534,0.00028715,120]
[384836453,1757582920826,669.47955097,0.00028715,120]
[384836454,1757582920870,403.47951917,0.00028715,120]
[384836455,1757582920950,1529.59366681,0.00028715,120]
[384836456,1757582920993,2058.21392013,0.00028715,120]
[384836457,1757582921070,6796.52263731,0.00028715,120]
[384836458,1757582921324,1876.43108462,0.00028715,60]
[384836459,1757582921438,1591.59578841,0.00028715,120]
[384836460,1757582921477,251.01,0.00012329,2]
[384836461,1757582921896,205.86853274,0.00027,120]
[384836462,1757582922156,4205.38095486,0.00028715,120]
[384836463,1757582922243,219.81311166,0.00028715,120]
[384836464,1757582922274,1585.13783906,0.00028715,120]
[384836465,1757582922308,434.27476169,0.00028715,120]
[384836466,1757582923564,322.70452103,0.00028715,120]
[384836467,1757582923607,306.05245681,0.00028715,120]
[384836468,1757582924118,2035.38478141,0.00024,120]
[384836469,1757582924437,1891.002506,0.00018,120]
[384836470,1757582924483,554.56602931,0.00028715,120]
[384836471,1757582924831,291.47098223,0.00027397,120]
[384836472,1757582925017,165.49821428,0.00028715,120]
[384836473,1757582925086,222.66353598,0.0001536,120]
[384836474,1757582925707,503.76512,0.00028715,120]
[384836475,1757582925851,541.92041782,0.00028715,120]
[384836476,1757582926125,2019.75351946,0.00028715,120]
[384836477,1757582926180,358.55928316,0.000249,120]
[384836478,1757582926329,1195.88377608,0.00028715,120]
[384836479,1757582926365,1028.19625324,0.00028715,120]
[384836480,1757582926638,223.35356674,0.00028715,120]
[384836481,1757582926684,163.86538194,0.00028715,120]
[384836482,1757582926966,2400.62859422,0.00028715,60]
[384836483,1757582927106,1955.7741992,0.00027,120]
[384836484,1757582927215,193.64629048,0.0002739,120]
[384836485,1757582927247,809.99999902,0.00028715,60]
[384836486,1757582927311,1545.61710317,0.00028715,120]
[384836487,1757582927658,713.88925937,0.00026,120]
[384836488,1757582927707,1013.40130471,0.00028715,120]
[384836489,1757582927920,1903.0,0.00028715,120]
[384836490,1757582927951,334.39875272,0.00026,120]
[384836491,1757582928204,426.98144252,0.00025,120]
[384836492,1757582928656,191.50592801,0.00027,120]
[384836493,1757582928769,222.0251716,0.00028715,120]
[384836494,1757582929114,1781.78376538,0.00028715,120]
[384836495,1757582929510,2430.29721562,0.00028715,120]
[384836496,1757582929674,1011.05486696,0.00028715,120]
[384836497,1757582929708,1945.66355157,0.00028715,120]
[384836498,1757582929767,4295.36289667,0.00028715,120]
[384836499,1757582929819,1375.61814697,0.00028715,120]
[384836500,1757582929957,1003.45658015,0.00028715,60]
[384836501,1757582930065,189.17386731,0.00028715,120]
[384836502,1757582930144,1697.21164638,0.00028715,120]
[384836503,1757582931905,209.18,0.00012329,2]
[384836504,1757582942320,174.31,0.00012329,2]
[384836505,1757582943375,300.0,0.00013589,2]
[384836506,1757582952719,871.6,0.00012329,2]
[384836508,1757583003111,300.0,0.00013589,2]
[384836509,1757583003315,300.0,0.00013589,2]
[384836510,1757583003349,300.0,0.00013589,2]
[384836511,1757583004365,1200.0,0.00013589,2]
[384836512,1757583005687,1705.0,0.00024,30]
[384836513,1757583009064,162.380719,0.0001359,2]
[384836514,1757583011241,2030.296672,0.0001359,2]
[384836522,1757583017785,500.0,0.0001359,2]
[384836523,1757583018529,500.0,0.0001359,2]
[384836524,1757583019233,500.0,0.0001359,2]
[384836525,1757583019920,237.68699579,0.0001359,2]
[384836526,1757583019949,262.31300421,0.0001359,2]
[384836527,1757583020426,151.0,0.0001359,2]
[384836528,1757583020643,500.0,0.0001359,2]
[384836529,1757583021302,500.0,0.0001359,2]
[384836530,1757583021680,151.0,0.0001359,2]
[384836531,1757583022241,500.0,0.0001359,2]
[384836532,1757583022386,151.0,0.0001359,2]
[384836533,1757583022840,500.0,0.0001359,2]
[384836534,1757583023080,151.0,0.0001359,2]
[384836535,1757583023556,500.0,0.0001359,2]
[384836536,1757583023720,151.0,0.0001359,2]
[384836537,1757583024220,500.0,0.0001359,2]
[384836538,1757583026576,151.0,0.00013454,2]
[384836539,1757583027706,1705.0,0.00024,30]
[384836586,1757583031841,-151.0,0.0001359,2]
[384836588,1757583031851,-500.0,0.0001359,2]
[384836590,1757583031861,-151.0,0.0001359,2]
[384836592,1757583031871,-151.0,0.0001359,2]
[384836594,1757583031881,-227.01349879,0.0001359,2]
[384836597,1757583031895,-272.98650121,0.0001359,2]
[384836599,1757583031904,-151.0,0.0001359,2]
[384836601,1757583031914,-500.0,0.0001359,2]
[384836603,1757583031923,-24.00673633,0.0001359,2]
[384836605,1757583031934,-126.99326367,0.0001359,2]
[384836607,1757583031943,-231.96018219,0.0001359,2]
[384836609,1757583031954,-268.03981781,0.0001359,2]
[384836611,1757583031963,-456.00678339,0.0001359,2]
[384836616,1757583031994,-43.99321661,0.0001359,2]
[384836617,1757583032003,-151.0,0.0001359,2]
[384836619,1757583032012,-403.02944979,0.0001359,2]
[384836715,1757583036132,-96.97055021,0.0001359,2]
[384836716,1757583036159,-151.0,0.0001359,2]
[384836717,1757583036188,-151.0,0.0001359,2]
[384836718,1757583036219,-500.0,0.0001359,2]
[384836719,1757583036248,-151.0,0.0001359,2]
[384836720,1757583036277,-151.0,0.0001359,2]
[384836721,1757583036307,-151.0,0.0001359,2]
[384836722,1757583036338,-500.0,0.0001359,2]
[384836723,1757583036370,-151.0,0.0001359,2]
[384836724,1757583036400,-151.0,0.0001359,2]
[384836725,1757583036433,-151.0,0.0001359,2]
[384836726,1757583036463,-166.15641849,0.0001359,2]
[384836727,1757583036492,-151.0,0.0001359,2]
[384836728,1757583036521,-151.0,0.0001359,2]
[384836735,1757583038276,-720.55179198,0.0001359,2]
[384836736,1757583038472,-1421.8277916,0.0001359,2]
[384836737,1757583038482,-138222.74635725,0.0001359,2]
[384836738,1757583038491,-802.15442709,0.0001359,2]
[384836739,1757583038501,-50000.0,0.0001359,2]
[384836740,1757583038511,-23727.3411688,0.0001359,2]
[384836741,1757583038521,-139347.1969943,0.00013643,2]
[384836742,1757583038530,-2105.41764886,0.00013645,2]
[384836743,1757583038540,-500.0,0.00013673,2]
[384836744,1757583038550,-488.81612663,0.00013673,2]
[384836745,1757583038559,-500.0,0.00013673,2]
[384836746,1757583038568,-500.0,0.00013673,2]
[384836747,1757583038578,-433.57024684,0.00013673,2]
[384836748,1757583038587,-500.0,0.00013673,2]
[384836749,1757583038596,-500.0,0.00013673,2]
[384836750,1757583038606,-500.0,0.00013673,2]
[384836751,1757583038615,-500.0,0.00013673,2]
[384836752,1757583038624,-501.26335615,0.00013673,2]
[384836753,1757583038634,-500.0,0.00013673,2]
[384836754,1757583038643,-164.42309066,0.00013673,2]
[384836755,1757583038653,-500.0,0.00013673,2]
[384836756,1757583038662,-500.77986851,0.00013673,2]
[384836757,1757583038672,-500.0,0.00013673,2]
[384836758,1757583038681,-483.79287691,0.00013698,2]
[384836759,1757583038690,-480.0,0.00013698,2]
[384836760,1757583038700,-480.0,0.00013698,2]
[384836761,1757583038709,-480.0,0.00013698,2]
[384836762,1757583038719,-480.0,0.00013698,2]
[384836763,1757583038728,-480.0,0.00013698,2]
[384836764,1757583038739,-480.0,0.00013698,2]
[384836765,1757583038749,-480.0,0.00013698,2]
[384836766,1757583038759,-483.17209252,0.00013698,2]
[384836767,1757583038768,-480.0,0.00013698,2]
[384836768,1757583038778,-491.3623074,0.00013698,2]
[384836769,1757583038788,-480.0,0.00013698,2]
[384836770,1757583038798,-477.72843832,0.00013698,2]
[384836771,1757583038808,-480.0,0.00013698,2]
[384836772,1757583038817,-480.0,0.00013698,2]
[384836773,1757583038826,-480.0,0.00013698,2]
[384836774,1757583038835,-480.0,0.00013698,2]
[384836775,1757583038845,-621.58576868,0.00013698,2]
[384836776,1757583038855,-480.0,0.00013698,2]
[384836777,1757583038866,-480.0,0.00013698,2]
[384836778,1757583038875,-480.0,0.00013698,2]
[384836779,1757583038885,-480.0,0.00013698,2]
[384836780,1757583038894,-480.0,0.00013698,2]
[384836781,1757583038903,-480.0,0.00013698,2]
[384836782,1757583038912,-480.0,0.00013698,2]